[Event "*** SCC Grand Prix: Titled Tuesday Blitz"]
[Site "Chess.com"]
[Date "2020.10.06"]
[Round "4"]
[White "Sacbutt"]
[Black "ErikRonka"]
[Result "0-1"]
[WhiteElo "2276"]
[BlackElo "2449"]
[TimeControl "180+1"]
[EndTime "10:39:52 PDT"]
[Termination "ErikRonka won on time"]

1. d4 {[%clk 0:03:00.9]} 1... d5 {[%clk 0:02:59.2]} 2. c4 {[%clk 0:03:00.8]}
2... e6 {[%clk 0:02:59.1]} 3. Nc3 {[%clk 0:03:00.5]} 3... Nf6 {[%clk 0:02:56.4]}
4. Bg5 {[%clk 0:02:59.9]} 4... dxc4 {[%clk 0:02:56.1]} 5. e3 {[%clk 0:02:58.2]}
5... c5 {[%clk 0:02:45.7]} 6. Nf3 {[%clk 0:02:55.3]} 6... cxd4 {[%clk
0:02:43.1]} 7. Nxd4 {[%clk 0:02:52.5]} 7... Be7 {[%clk 0:02:37]} 8. Bxc4 {[%clk
0:02:51.5]} 8... O-O {[%clk 0:02:36.1]} 9. O-O {[%clk 0:02:51.4]} 9... h6 {[%clk
0:02:31.7]} 10. Bh4 {[%clk 0:02:49.9]} 10... a6 {[%clk 0:02:32]} 11. Qf3 {[%clk
0:02:39.2]} 11... Nbd7 {[%clk 0:02:27.5]} 12. Rfd1 {[%clk 0:02:32.3]} 12... Ne5
{[%clk 0:02:25.1]} 13. Qe2 {[%clk 0:02:32.8]} 13... Nxc4 {[%clk 0:02:22.4]} 14.
Qxc4 {[%clk 0:02:33.7]} 14... b5 {[%clk 0:02:14.8]} 15. Qc6 {[%clk 0:02:01.2]}
15... Bd7 {[%clk 0:02:12.4]} 16. Qf3 {[%clk 0:02:01.8]} 16... Rc8 {[%clk
0:01:56.5]} 17. Bg3 {[%clk 0:01:58.9]} 17... Qb6 {[%clk 0:01:51.9]} 18. Ne4
{[%clk 0:01:52.1]} 18... Nxe4 {[%clk 0:01:34.8]} 19. Qxe4 {[%clk 0:01:53]} 19...
Rfd8 {[%clk 0:01:31.3]} 20. Nf5 {[%clk 0:01:38.6]} 20... exf5 {[%clk 0:00:46.3]}
21. Qxe7 {[%clk 0:01:39.5]} 21... Be6 {[%clk 0:00:43.6]} 22. Rxd8+ {[%clk
0:01:11.8]} 22... Qxd8 {[%clk 0:00:43.3]} 23. Qxd8+ {[%clk 0:01:08.9]} 23...
Rxd8 {[%clk 0:00:44.2]} 24. a3 {[%clk 0:01:08.4]} 24... Rd2 {[%clk 0:00:43.4]}
25. Be5 {[%clk 0:01:08.3]} 25... f6 {[%clk 0:00:35.5]} 26. Bc3 {[%clk
0:01:07.4]} 26... Rc2 {[%clk 0:00:30.8]} 27. Rd1 {[%clk 0:01:02.4]} 27... Kf7
{[%clk 0:00:29]} 28. g3 {[%clk 0:00:57.8]} 28... a5 {[%clk 0:00:28]} 29. Bxa5
{[%clk 0:00:47.2]} 29... Rxb2 {[%clk 0:00:28]} 30. Bb4 {[%clk 0:00:44.5]} 30...
g5 {[%clk 0:00:26.6]} 31. Rc1 {[%clk 0:00:38.6]} 31... Bc4 {[%clk 0:00:24.1]}
32. h3 {[%clk 0:00:30.1]} 32... h5 {[%clk 0:00:23.8]} 33. Kg2 {[%clk 0:00:28.4]}
33... Bd5+ {[%clk 0:00:22.8]} 34. Kf1 {[%clk 0:00:26.3]} 34... h4 {[%clk
0:00:20.1]} 35. gxh4 {[%clk 0:00:23.8]} 35... gxh4 {[%clk 0:00:21]} 36. Kg1
{[%clk 0:00:23.5]} 36... Be4 {[%clk 0:00:19.8]} 37. Rc7+ {[%clk 0:00:22.1]}
37... Kg6 {[%clk 0:00:19.9]} 38. Rc1 {[%clk 0:00:21.8]} 38... f4 {[%clk
0:00:18]} 39. exf4 {[%clk 0:00:20.5]} 39... Kf5 {[%clk 0:00:18.6]} 40. Bd6
{[%clk 0:00:20.9]} 40... Ra2 {[%clk 0:00:17.3]} 41. Re1 {[%clk 0:00:19.7]} 41...
Bf3 {[%clk 0:00:16.3]} 42. Rc1 {[%clk 0:00:19.1]} 42... Re2 {[%clk 0:00:15.9]}
43. Rb1 {[%clk 0:00:18.3]} 43... Re8 {[%clk 0:00:14.8]} 44. Rc1 {[%clk
0:00:18.2]} 44... Rg8+ {[%clk 0:00:14.6]} 45. Kf1 {[%clk 0:00:16.1]} 45... Bg2+
{[%clk 0:00:12.1]} 46. Ke2 {[%clk 0:00:16.6]} 46... Bxh3 {[%clk 0:00:12.7]} 47.
Ke3 {[%clk 0:00:16.9]} 47... Ke6 {[%clk 0:00:11.6]} 48. Bc7 {[%clk 0:00:15.2]}
48... Bf5 {[%clk 0:00:11.3]} 49. Rh1 {[%clk 0:00:14.2]} 49... h3 {[%clk
0:00:11.3]} 50. Kf3 {[%clk 0:00:14.5]} 50... Rc8 {[%clk 0:00:11.5]} 51. Bb6
{[%clk 0:00:14.6]} 51... Rc3+ {[%clk 0:00:11.4]} 52. Be3 {[%clk 0:00:14.7]}
52... Rxa3 {[%clk 0:00:12.3]} 53. Kg3 {[%clk 0:00:14.8]} 53... b4 {[%clk
0:00:11.8]} 54. Rc1 {[%clk 0:00:14.9]} 54... b3 {[%clk 0:00:11.5]} 55. Rc6+
{[%clk 0:00:15.5]} 55... Kd7 {[%clk 0:00:11.1]} 56. Rb6 {[%clk 0:00:15.8]} 56...
Bc2 {[%clk 0:00:08.5]} 57. Kxh3 {[%clk 0:00:13.1]} 57... Ra2 {[%clk 0:00:08.7]}
58. Kg4 {[%clk 0:00:13]} 58... b2 {[%clk 0:00:08.5]} 0-1

[Event "*** SCC Grand Prix: Titled Tuesday Blitz"]
[Site "Chess.com"]
[Date "2020.10.06"]
[Round "4"]
[White "ethylalcohol"]
[Black "Manukyan_Artak"]
[Result "1/2-1/2"]
[WhiteElo "2148"]
[BlackElo "2313"]
[TimeControl "180+1"]
[EndTime "10:39:54 PDT"]
[Termination "Game drawn by repetition"]

1. d4 {[%clk 0:03:00.9]} 1... Nf6 {[%clk 0:02:59.6]} 2. Bf4 {[%clk 0:03:00.7]}
2... d5 {[%clk 0:02:58.6]} 3. Nf3 {[%clk 0:03:00.4]} 3... Bf5 {[%clk 0:02:58.3]}
4. e3 {[%clk 0:03:00.2]} 4... e6 {[%clk 0:02:58.7]} 5. Bd3 {[%clk 0:03:00.5]}
5... Bxd3 {[%clk 0:02:57.3]} 6. Qxd3 {[%clk 0:03:01.4]} 6... c5 {[%clk
0:02:56.3]} 7. O-O {[%clk 0:02:57.8]} 7... Qb6 {[%clk 0:02:55.8]} 8. b3 {[%clk
0:02:52.5]} 8... Nc6 {[%clk 0:02:55]} 9. a3 {[%clk 0:02:49.6]} 9... cxd4 {[%clk
0:02:47.1]} 10. exd4 {[%clk 0:02:46.2]} 10... Be7 {[%clk 0:02:46.9]} 11. c4
{[%clk 0:02:45.9]} 11... dxc4 {[%clk 0:02:41.1]} 12. bxc4 {[%clk 0:02:46.8]}
12... O-O {[%clk 0:02:39.8]} 13. Nc3 {[%clk 0:02:33.6]} 13... Qa6 {[%clk
0:02:36.4]} 14. Rfd1 {[%clk 0:02:18.8]} 14... Rfd8 {[%clk 0:02:30.2]} 15. Nb5
{[%clk 0:02:17.5]} 15... Ne8 {[%clk 0:02:27]} 16. Qe4 {[%clk 0:02:10.6]} 16...
Na5 {[%clk 0:02:23.9]} 17. d5 {[%clk 0:01:59.4]} 17... Nf6 {[%clk 0:02:08.4]}
18. Qe2 {[%clk 0:01:58]} 18... Rac8 {[%clk 0:01:50.8]} 19. Rac1 {[%clk
0:01:36.6]} 19... Nxc4 {[%clk 0:01:42.6]} 20. Nc7 {[%clk 0:01:30.5]} 20... Qa4
{[%clk 0:01:08]} 21. Rxc4 {[%clk 0:01:28.7]} 21... Qxa3 {[%clk 0:01:05.4]} 22.
Nb5 {[%clk 0:01:17.7]} 22... Qa6 {[%clk 0:01:00.8]} 23. Rxc8 {[%clk 0:01:12.8]}
23... Rxc8 {[%clk 0:00:59.9]} 24. dxe6 {[%clk 0:01:12.8]} 24... Qxe6 {[%clk
0:00:59.8]} 25. Qxe6 {[%clk 0:01:08.7]} 25... fxe6 {[%clk 0:01:00.7]} 26. Nxa7
{[%clk 0:01:07.5]} 26... Rc2 {[%clk 0:00:58.9]} 27. Be3 {[%clk 0:01:01.4]} 27...
Nd5 {[%clk 0:00:58.1]} 28. Bd4 {[%clk 0:01:00.4]} 28... Nf4 {[%clk 0:00:47.7]}
29. Kf1 {[%clk 0:00:52.5]} 29... Ne2 {[%clk 0:00:36]} 30. Be3 {[%clk 0:00:45.6]}
30... Nc3 {[%clk 0:00:34.8]} 31. Rd7 {[%clk 0:00:43.8]} 31... Bf6 {[%clk
0:00:28.3]} 32. Nd4 {[%clk 0:00:32.6]} 32... Ra2 {[%clk 0:00:25]} 33. Ne2 {[%clk
0:00:17.4]} 33... Nxe2 {[%clk 0:00:18.8]} 34. Nb5 {[%clk 0:00:14.9]} 34... Rb2
{[%clk 0:00:14.2]} 35. Rxb7 {[%clk 0:00:14.2]} 35... Nc3 {[%clk 0:00:11.8]} 36.
Nd6 {[%clk 0:00:12.9]} 36... Rxb7 {[%clk 0:00:07.7]} 37. Nxb7 {[%clk 0:00:13.8]}
37... Kf7 {[%clk 0:00:07.9]} 38. Nd6+ {[%clk 0:00:12.9]} 38... Kg6 {[%clk
0:00:07.6]} 39. g3 {[%clk 0:00:11.5]} 39... Nd5 {[%clk 0:00:08.1]} 40. Ke2
{[%clk 0:00:11]} 40... h5 {[%clk 0:00:08.9]} 41. Ne4 {[%clk 0:00:08.8]} 41...
Be5 {[%clk 0:00:07.5]} 42. h4 {[%clk 0:00:08.6]} 42... Nb4 {[%clk 0:00:05.3]}
43. Ng5 {[%clk 0:00:08.2]} 43... Kf5 {[%clk 0:00:04.7]} 44. f3 {[%clk
0:00:07.7]} 44... Nd5 {[%clk 0:00:04.7]} 45. Ne4 {[%clk 0:00:07.2]} 45... Nc3+
{[%clk 0:00:03.2]} 46. Nxc3 {[%clk 0:00:06.3]} 46... Bxc3 {[%clk 0:00:04.1]} 47.
Kd3 {[%clk 0:00:05.7]} 47... Be5 {[%clk 0:00:04.2]} 48. Bf2 {[%clk 0:00:05.7]}
48... g6 {[%clk 0:00:03.7]} 49. Ke3 {[%clk 0:00:05.3]} 49... Bc7 {[%clk
0:00:02.9]} 50. f4 {[%clk 0:00:04.8]} 50... Kg4 {[%clk 0:00:02.4]} 51. Ke4
{[%clk 0:00:04]} 51... Bd6 {[%clk 0:00:02.7]} 52. Be1 {[%clk 0:00:03]} 52... Bc7
{[%clk 0:00:02.6]} 53. Bf2 {[%clk 0:00:02.7]} 53... Bb8 {[%clk 0:00:03.2]} 54.
Be1 {[%clk 0:00:02.9]} 54... Bc7 {[%clk 0:00:04.1]} 55. Bf2 {[%clk 0:00:03.5]}
1/2-1/2

[Event "*** SCC Grand Prix: Titled Tuesday Blitz"]
[Site "Chess.com"]
[Date "2020.10.06"]
[Round "4"]
[White "Chessdreamer2020"]
[Black "topotun"]
[Result "0-1"]
[WhiteElo "2449"]
[BlackElo "2751"]
[TimeControl "180+1"]
[EndTime "10:39:57 PDT"]
[Termination "topotun won by resignation"]

1. e4 {[%clk 0:03:00.8]} 1... c5 {[%clk 0:02:53.7]} 2. Nf3 {[%clk 0:03:00.1]}
2... e6 {[%clk 0:02:53.9]} 3. b3 {[%clk 0:02:59.2]} 3... b6 {[%clk 0:02:51.9]}
4. Bb2 {[%clk 0:02:58.4]} 4... Bb7 {[%clk 0:02:52.1]} 5. Qe2 {[%clk 0:02:59]}
5... Nc6 {[%clk 0:02:28.2]} 6. Nc3 {[%clk 0:02:58.7]} 6... e5 {[%clk 0:01:40.2]}
7. Nd5 {[%clk 0:02:49.7]} 7... g6 {[%clk 0:01:32.5]} 8. Nxe5 {[%clk 0:02:46.6]}
8... Nd4 {[%clk 0:01:25.7]} 9. Bxd4 {[%clk 0:02:31.9]} 9... cxd4 {[%clk
0:01:26.6]} 10. Qf3 {[%clk 0:02:27.9]} 10... Bxd5 {[%clk 0:01:09.1]} 11. exd5
{[%clk 0:02:26.8]} 11... Qe7 {[%clk 0:01:09.8]} 12. Qe2 {[%clk 0:02:03.5]} 12...
Nf6 {[%clk 0:01:07.8]} 13. d6 {[%clk 0:01:56.7]} 13... Qe6 {[%clk 0:01:05.7]}
14. O-O-O {[%clk 0:01:52.5]} 14... Bxd6 {[%clk 0:00:59.6]} 15. Nf3 {[%clk
0:01:52.2]} 15... Bc5 {[%clk 0:00:40.3]} 16. Re1 {[%clk 0:01:52]} 16... O-O
{[%clk 0:00:38.8]} 17. Qxe6 {[%clk 0:01:49.2]} 17... dxe6 {[%clk 0:00:38.5]} 18.
Kb2 {[%clk 0:01:42.3]} 18... Ng4 {[%clk 0:00:29.8]} 19. Re2 {[%clk 0:01:36]}
19... d3 {[%clk 0:00:29.1]} 20. cxd3 {[%clk 0:01:36.3]} 20... Rad8 {[%clk
0:00:15.7]} 21. d4 {[%clk 0:01:34]} 21... Bxd4+ {[%clk 0:00:14.8]} 22. Nxd4
{[%clk 0:01:34.4]} 22... Rxd4 {[%clk 0:00:15.5]} 23. h3 {[%clk 0:01:32.5]} 23...
Nf6 {[%clk 0:00:15.8]} 24. g3 {[%clk 0:01:29.8]} 24... Rfd8 {[%clk 0:00:15.5]}
25. Kc2 {[%clk 0:01:29.3]} 25... Ne4 {[%clk 0:00:15.4]} 26. d3 {[%clk
0:01:28.2]} 26... Rc8+ {[%clk 0:00:15.3]} 27. Kb2 {[%clk 0:01:26.9]} 27... Nc5
{[%clk 0:00:14.8]} 28. Rd2 {[%clk 0:01:26.4]} 28... Rcd8 {[%clk 0:00:10.9]} 29.
Kc2 {[%clk 0:01:13.6]} 29... Ne4 {[%clk 0:00:11]} 30. Re2 {[%clk 0:01:13.7]}
30... Rc8+ {[%clk 0:00:11.1]} 31. Kb2 {[%clk 0:01:12.9]} 31... Nc5 {[%clk
0:00:06.3]} 32. Re3 {[%clk 0:01:10.7]} 32... Rcd8 {[%clk 0:00:05.2]} 33. Kc2
{[%clk 0:01:10.7]} 33... Rc8 {[%clk 0:00:04.9]} 34. Kb2 {[%clk 0:01:07.3]} 34...
a5 {[%clk 0:00:05.1]} 35. Be2 {[%clk 0:01:03.4]} 35... Rcd8 {[%clk 0:00:05.2]}
36. Rd1 {[%clk 0:01:01.3]} 36... h5 {[%clk 0:00:05.5]} 37. h4 {[%clk 0:01:00.7]}
37... Kg7 {[%clk 0:00:06]} 38. Kc3 {[%clk 0:00:59.9]} 38... f5 {[%clk
0:00:05.6]} 39. a3 {[%clk 0:00:55.7]} 39... Kf6 {[%clk 0:00:05.9]} 40. b4 {[%clk
0:00:55.6]} 40... axb4+ {[%clk 0:00:06.5]} 41. axb4 {[%clk 0:00:56.1]} 41...
Na4+ {[%clk 0:00:06.6]} 42. Kb3 {[%clk 0:00:55.7]} 42... b5 {[%clk 0:00:07.5]}
43. Rc1 {[%clk 0:00:55.2]} 43... R4d6 {[%clk 0:00:05.8]} 44. Rc7 {[%clk
0:00:53.6]} 44... Nb6 {[%clk 0:00:05.5]} 45. Rb7 {[%clk 0:00:51]} 45... Nd5
{[%clk 0:00:05.9]} 46. Rf3 {[%clk 0:00:50.2]} 46... Rc8 {[%clk 0:00:06.3]} 47.
Rxb5 {[%clk 0:00:49.4]} 47... Nc3 {[%clk 0:00:06.2]} 48. Rc5 {[%clk 0:00:46.1]}
48... Nxe2 {[%clk 0:00:05.4]} 49. Rxc8 {[%clk 0:00:45]} 49... Nd4+ {[%clk
0:00:06.3]} 50. Kc4 {[%clk 0:00:44.6]} 50... Nxf3 {[%clk 0:00:07.2]} 51. b5
{[%clk 0:00:45.1]} 51... Ne5+ {[%clk 0:00:07.2]} 52. Kc5 {[%clk 0:00:44.6]}
52... Rxd3 {[%clk 0:00:07.7]} 53. b6 {[%clk 0:00:44.3]} 53... Rc3+ {[%clk
0:00:08.1]} 54. Kd6 {[%clk 0:00:43.3]} 54... Rxc8 {[%clk 0:00:09]} 55. b7 {[%clk
0:00:43.9]} 55... Rb8 {[%clk 0:00:09.4]} 56. Kc7 {[%clk 0:00:44.5]} 56... Rxb7+
{[%clk 0:00:09.9]} 57. Kxb7 {[%clk 0:00:45]} 57... Nd3 {[%clk 0:00:10.8]} 58. f3
{[%clk 0:00:44.2]} 58... Ne1 {[%clk 0:00:10.5]} 59. f4 {[%clk 0:00:43.8]} 59...
e5 {[%clk 0:00:11.2]} 60. fxe5+ {[%clk 0:00:42.5]} 60... Kxe5 {[%clk 0:00:12.1]}
61. Kc6 {[%clk 0:00:43.2]} 61... Nd3 {[%clk 0:00:11.4]} 62. Kd7 {[%clk
0:00:43.3]} 62... Kf6 {[%clk 0:00:11.9]} 63. Kd6 {[%clk 0:00:43.2]} 63... Nf2
{[%clk 0:00:12.4]} 64. Kd5 {[%clk 0:00:43.2]} 64... Ne4 {[%clk 0:00:13.3]} 65.
Kd4 {[%clk 0:00:43.5]} 65... Nxg3 {[%clk 0:00:13.4]} 66. Ke3 {[%clk 0:00:44.4]}
66... Ne4 {[%clk 0:00:14.2]} 67. Kf4 {[%clk 0:00:45.3]} 67... Nc5 {[%clk
0:00:14.8]} 68. Kf3 {[%clk 0:00:46.2]} 68... Ne6 {[%clk 0:00:15.7]} 69. Ke3
{[%clk 0:00:46]} 69... Ke5 {[%clk 0:00:16.6]} 70. Kf3 {[%clk 0:00:46.5]} 70...
f4 {[%clk 0:00:17.5]} 71. Kf2 {[%clk 0:00:46.3]} 71... Kf5 {[%clk 0:00:18.4]}
72. Ke2 {[%clk 0:00:47]} 72... Nd4+ {[%clk 0:00:19.2]} 73. Kf2 {[%clk
0:00:47.7]} 73... Kg4 {[%clk 0:00:19.7]} 74. Kg2 {[%clk 0:00:48.1]} 74... Nf5
{[%clk 0:00:20.6]} 75. Kh2 {[%clk 0:00:49]} 75... Nxh4 {[%clk 0:00:21.5]} 76.
Kg1 {[%clk 0:00:48.1]} 76... g5 {[%clk 0:00:22.4]} 77. Kf2 {[%clk 0:00:48.5]}
77... f3 {[%clk 0:00:22.4]} 78. Kf1 {[%clk 0:00:48.3]} 78... Kg3 {[%clk
0:00:22.8]} 79. Kg1 {[%clk 0:00:48.7]} 79... Nf5 {[%clk 0:00:23.7]} 80. Kf1
{[%clk 0:00:49.1]} 80... g4 {[%clk 0:00:24.6]} 81. Ke1 {[%clk 0:00:49.4]} 81...
Kg2 {[%clk 0:00:24.3]} 82. Kd2 {[%clk 0:00:49]} 82... f2 {[%clk 0:00:25.2]} 83.
Kd3 {[%clk 0:00:49.7]} 83... f1=Q+ {[%clk 0:00:25.4]} 84. Ke4 {[%clk 0:00:50.6]}
84... Qf3+ {[%clk 0:00:25.3]} 85. Ke5 {[%clk 0:00:51.5]} 85... Ng3 {[%clk
0:00:25.6]} 0-1

[Event "*** SCC Grand Prix: Titled Tuesday Blitz"]
[Site "Chess.com"]
[Date "2020.10.06"]
[Round "4"]
[White "Anton_Demchenko"]
[Black "crazy_but_lazy"]
[Result "1-0"]
[WhiteElo "2830"]
[BlackElo "2557"]
[TimeControl "180+1"]
[EndTime "10:39:57 PDT"]
[Termination "Anton_Demchenko won by checkmate"]

1. e4 {[%clk 0:03:00.9]} 1... c6 {[%clk 0:03:00.2]} 2. d4 {[%clk 0:03:00.1]}
2... d5 {[%clk 0:03:00.8]} 3. Nc3 {[%clk 0:03:00.8]} 3... dxe4 {[%clk
0:03:00.9]} 4. Nxe4 {[%clk 0:03:01.5]} 4... Bf5 {[%clk 0:03:01.5]} 5. Ng3 {[%clk
0:03:01.7]} 5... Bg6 {[%clk 0:03:02.1]} 6. N1e2 {[%clk 0:03:02.3]} 6... Nf6
{[%clk 0:03:00]} 7. c3 {[%clk 0:03:02.5]} 7... e6 {[%clk 0:02:58.5]} 8. h4
{[%clk 0:03:01.4]} 8... h6 {[%clk 0:02:54.1]} 9. Nf4 {[%clk 0:03:01.3]} 9... Bh7
{[%clk 0:02:54.2]} 10. Bd3 {[%clk 0:03:01.8]} 10... Bxd3 {[%clk 0:02:53.1]} 11.
Nxd3 {[%clk 0:03:02.7]} 11... Nbd7 {[%clk 0:02:52.1]} 12. Nh5 {[%clk 0:03:01.8]}
12... Nxh5 {[%clk 0:02:47.5]} 13. Qxh5 {[%clk 0:03:02.7]} 13... Nf6 {[%clk
0:02:45.7]} 14. Qf3 {[%clk 0:03:00.9]} 14... Bd6 {[%clk 0:02:45.9]} 15. Kf1
{[%clk 0:02:53.8]} 15... Qc7 {[%clk 0:02:42.8]} 16. a4 {[%clk 0:02:42]} 16...
O-O {[%clk 0:02:18.4]} 17. Bxh6 {[%clk 0:02:38.3]} 17... c5 {[%clk 0:02:10]} 18.
dxc5 {[%clk 0:02:30.3]} 18... Bxc5 {[%clk 0:02:10.3]} 19. Bf4 {[%clk 0:02:30.9]}
19... Bd6 {[%clk 0:02:07.8]} 20. Bxd6 {[%clk 0:02:25.3]} 20... Qxd6 {[%clk
0:02:08.7]} 21. h5 {[%clk 0:02:26]} 21... Rad8 {[%clk 0:01:56.9]} 22. Rh3 {[%clk
0:02:23.7]} 22... e5 {[%clk 0:01:52.8]} 23. Qg3 {[%clk 0:01:57.3]} 23... e4
{[%clk 0:01:34.2]} 24. Nf4 {[%clk 0:01:56.1]} 24... e3 {[%clk 0:01:00.6]} 25.
fxe3 {[%clk 0:01:07.1]} 25... Ne4 {[%clk 0:00:55.5]} 26. Qh4 {[%clk 0:01:07.3]}
26... Qd2 {[%clk 0:00:17.2]} 27. Kg1 {[%clk 0:01:06.5]} 27... Qxb2 {[%clk
0:00:17]} 28. Rf1 {[%clk 0:01:06.2]} 28... Qxc3 {[%clk 0:00:17]} 29. h6 {[%clk
0:00:34.8]} 29... g6 {[%clk 0:00:16.1]} 30. Nxg6 {[%clk 0:00:25.6]} 30... fxg6
{[%clk 0:00:14.2]} 31. Rxf8+ {[%clk 0:00:25.4]} 31... Rxf8 {[%clk 0:00:14.1]}
32. Qxe4 {[%clk 0:00:25.5]} 32... Qa1+ {[%clk 0:00:03.8]} 33. Kh2 {[%clk
0:00:24.4]} 33... Qf6 {[%clk 0:00:04.7]} 34. Rg3 {[%clk 0:00:09.9]} 34... Kh7
{[%clk 0:00:04.6]} 35. Qxb7+ {[%clk 0:00:09.7]} 35... Rf7 {[%clk 0:00:04.6]} 36.
Qe4 {[%clk 0:00:09.7]} 36... Qd6 {[%clk 0:00:05.1]} 37. Qh4 {[%clk 0:00:05.7]}
37... Rf5 {[%clk 0:00:05.3]} 38. Qg4 {[%clk 0:00:04.5]} 38... Rh5+ {[%clk
0:00:05.3]} 39. Kg1 {[%clk 0:00:05.1]} 39... Qd1+ {[%clk 0:00:05.7]} 40. Kf2
{[%clk 0:00:05.4]} 40... Qd2+ {[%clk 0:00:05]} 41. Qe2 {[%clk 0:00:05.7]} 41...
Rf5+ {[%clk 0:00:04.5]} 42. Rf3 {[%clk 0:00:06.2]} 42... Rxf3+ {[%clk
0:00:03.2]} 43. gxf3 {[%clk 0:00:05.1]} 43... Qd6 {[%clk 0:00:03.7]} 44. f4
{[%clk 0:00:03.4]} 44... Qd5 {[%clk 0:00:03.4]} 45. Qb5 {[%clk 0:00:02.8]} 45...
Qd2+ {[%clk 0:00:02.2]} 46. Kf3 {[%clk 0:00:02.1]} 46... Qd1+ {[%clk 0:00:02.7]}
47. Ke4 {[%clk 0:00:02.7]} 47... Kxh6 {[%clk 0:00:02.6]} 48. Qe5 {[%clk
0:00:01.2]} 48... Qb1+ {[%clk 0:00:02.7]} 49. Kf3 {[%clk 0:00:02.1]} 49... Qd1+
{[%clk 0:00:02.8]} 50. Kf2 {[%clk 0:00:02.2]} 50... Qc2+ {[%clk 0:00:02.5]} 51.
Kf3 {[%clk 0:00:03.1]} 51... Qd1+ {[%clk 0:00:02.9]} 52. Ke4 {[%clk 0:00:04]}
52... Qc2+ {[%clk 0:00:03.1]} 53. Kd5 {[%clk 0:00:04.9]} 53... Qxa4 {[%clk
0:00:03.2]} 54. Qh8# {[%clk 0:00:03.9]} 1-0

[Event "*** SCC Grand Prix: Titled Tuesday Blitz"]
[Site "Chess.com"]
[Date "2020.10.06"]
[Round "4"]
[White "Kaua18"]
[Black "norwaytoadog"]
[Result "0-1"]
[WhiteElo "2448"]
[BlackElo "2295"]
[TimeControl "180+1"]
[EndTime "10:39:57 PDT"]
[Termination "norwaytoadog won by checkmate"]

1. e4 {[%clk 0:02:59]} 1... c5 {[%clk 0:02:59.2]} 2. Nf3 {[%clk 0:02:59.2]} 2...
d6 {[%clk 0:02:59.3]} 3. d4 {[%clk 0:02:59.5]} 3... cxd4 {[%clk 0:02:59.5]} 4.
Nxd4 {[%clk 0:03:00.4]} 4... Nf6 {[%clk 0:02:59.9]} 5. Nc3 {[%clk 0:03:00.1]}
5... a6 {[%clk 0:03:00]} 6. Be2 {[%clk 0:02:59.2]} 6... e5 {[%clk 0:02:59.4]} 7.
Nb3 {[%clk 0:02:59.6]} 7... Be7 {[%clk 0:02:59.5]} 8. O-O {[%clk 0:03:00.2]}
8... O-O {[%clk 0:02:59.4]} 9. Bf3 {[%clk 0:03:00.4]} 9... Be6 {[%clk
0:02:54.5]} 10. Re1 {[%clk 0:02:57.5]} 10... b5 {[%clk 0:02:45.6]} 11. a4 {[%clk
0:02:55.9]} 11... b4 {[%clk 0:02:41.4]} 12. Nd5 {[%clk 0:02:54.4]} 12... Nxd5
{[%clk 0:02:31.6]} 13. exd5 {[%clk 0:02:55.3]} 13... Bf5 {[%clk 0:02:31.7]} 14.
c3 {[%clk 0:02:46.7]} 14... bxc3 {[%clk 0:02:14.4]} 15. bxc3 {[%clk 0:02:47.6]}
15... Nd7 {[%clk 0:02:11]} 16. a5 {[%clk 0:02:25.5]} 16... Bg6 {[%clk
0:02:07.1]} 17. Bh5 {[%clk 0:02:14.1]} 17... Bxh5 {[%clk 0:01:53.8]} 18. Qxh5
{[%clk 0:02:15]} 18... f5 {[%clk 0:01:53.9]} 19. Ba3 {[%clk 0:02:06]} 19... g6
{[%clk 0:01:52.5]} 20. Qe2 {[%clk 0:02:02.1]} 20... f4 {[%clk 0:01:39.1]} 21. f3
{[%clk 0:01:51.7]} 21... Nf6 {[%clk 0:01:31.4]} 22. c4 {[%clk 0:01:44.2]} 22...
Rb8 {[%clk 0:01:28.4]} 23. Rab1 {[%clk 0:01:40.5]} 23... Qd7 {[%clk 0:01:17.8]}
24. c5 {[%clk 0:01:14.5]} 24... dxc5 {[%clk 0:00:52.3]} 25. Nxc5 {[%clk
0:00:47.1]} 25... Qa7 {[%clk 0:00:43.6]} 26. Rxb8 {[%clk 0:00:32.1]} 26... Bxc5+
{[%clk 0:00:39.2]} 27. Bxc5 {[%clk 0:00:31.9]} 27... Qxc5+ {[%clk 0:00:39.3]}
28. Kh1 {[%clk 0:00:32.4]} 28... Rxb8 {[%clk 0:00:37]} 29. Qxe5 {[%clk
0:00:32.7]} 29... Re8 {[%clk 0:00:28]} 30. Qa1 {[%clk 0:00:20.5]} 30... Rxe1+
{[%clk 0:00:24.9]} 31. Qxe1 {[%clk 0:00:21.4]} 31... Qxd5 {[%clk 0:00:24.5]} 32.
h3 {[%clk 0:00:18.2]} 32... Kf7 {[%clk 0:00:23.7]} 33. Qb4 {[%clk 0:00:16.4]}
33... Nh5 {[%clk 0:00:22.4]} 34. Kh2 {[%clk 0:00:12.2]} 34... g5 {[%clk
0:00:21.5]} 35. Qb1 {[%clk 0:00:08]} 35... Kg7 {[%clk 0:00:21]} 36. Qb2+ {[%clk
0:00:07.2]} 36... Nf6 {[%clk 0:00:19.2]} 37. Qb6 {[%clk 0:00:06.7]} 37... Qb5
{[%clk 0:00:13.8]} 38. Qc7+ {[%clk 0:00:07.1]} 38... Qd7 {[%clk 0:00:12.2]} 39.
h4 {[%clk 0:00:08]} 39... g4 {[%clk 0:00:10.3]} 40. Qxf4 {[%clk 0:00:05.9]}
40... gxf3 {[%clk 0:00:09.5]} 41. Qg5+ {[%clk 0:00:02.6]} 41... Kf7 {[%clk
0:00:09.4]} 42. gxf3 {[%clk 0:00:03.3]} 42... Qd6+ {[%clk 0:00:09.3]} 43. Kg2
{[%clk 0:00:02.7]} 43... Qe6 {[%clk 0:00:08.2]} 44. Qc5 {[%clk 0:00:02]} 44...
h5 {[%clk 0:00:07.6]} 45. Qa7+ {[%clk 0:00:01.8]} 45... Kg6 {[%clk 0:00:07.3]}
46. Qa8 {[%clk 0:00:01.7]} 46... Qe2+ {[%clk 0:00:06.8]} 47. Kg3 {[%clk
0:00:02]} 47... Qe1+ {[%clk 0:00:06.8]} 48. Kf4 {[%clk 0:00:02.1]} 48... Qxh4+
{[%clk 0:00:06.1]} 49. Ke5 {[%clk 0:00:02.7]} 49... Qg5+ {[%clk 0:00:05.8]} 50.
Ke6 {[%clk 0:00:02.6]} 50... Qf5+ {[%clk 0:00:05.2]} 51. Ke7 {[%clk 0:00:02.7]}
51... Qe5+ {[%clk 0:00:05]} 52. Kf8 {[%clk 0:00:02.5]} 52... Qd6# {[%clk
0:00:04.1]} 0-1